fUST/lending_fUST_20240526
["ID","MTS","AMOUNT","RATE_DAILY","PERIOD"]
[327931673,1716666634059,-188.40339253,0.00019178,2]
[327931674,1716666634068,-500.0,0.00019178,2]
[327931675,1716666634078,-500.0,0.00019178,2]
[327931676,1716666634087,-500.0,0.00019178,2]
[327931677,1716666634097,-500.0,0.00019178,2]
[327931678,1716666634107,-2719.21985546,0.00019178,2]
[327931679,1716666634119,-500.0,0.00019178,2]
[327931680,1716666634130,-500.0,0.00019178,2]
[327931681,1716666634139,-500.0,0.00019178,2]
[327931682,1716666634148,-2719.21985546,0.00019178,2]
[327931683,1716666634158,-500.0,0.00019178,2]
[327931684,1716666634168,-500.0,0.00019178,2]
[327931685,1716666634178,-500.0,0.00019178,2]
[327931686,1716666634188,-500.0,0.00019178,2]
[327931687,1716666634198,-2719.21985546,0.00019178,2]
[327931688,1716666634208,-500.0,0.00019178,2]
[327931689,1716666634218,-500.0,0.00019178,2]
[327931690,1716666634227,-500.0,0.00019178,2]
[327931691,1716666634237,-500.0,0.00019178,2]
[327931692,1716666634247,-2719.21985546,0.00019178,2]
[327931693,1716666634256,-226.65572256,0.00019178,2]
[327931694,1716666634266,-500.0,0.00019178,2]
[327931695,1716666634276,-500.0,0.00019178,2]
[327931696,1716666634286,-500.0,0.00019178,2]
[327931697,1716666634295,-2719.21985546,0.00019178,2]
[327931698,1716666634305,-500.0,0.00019178,2]
[327931699,1716666634314,-500.0,0.00019178,2]
[327931700,1716666634323,-2719.21985546,0.00019178,2]
[327931701,1716666634333,-500.0,0.00019178,2]
[327931702,1716666634342,-2719.21985546,0.00019178,2]
[327931703,1716666634352,-500.0,0.00019178,2]
[327931704,1716666634361,-500.0,0.00019178,2]
[327931705,1716666634370,-2719.21985546,0.00019178,2]
[327931706,1716666634380,-500.0,0.00019178,2]
[327931707,1716666634389,-500.0,0.00019178,2]
[327931708,1716666634399,-500.0,0.00019178,2]
[327931709,1716666634408,-500.0,0.00019178,2]
[327931710,1716666634418,-500.0,0.00019178,2]
[327931711,1716666634428,-500.0,0.00019178,2]
[327931712,1716666634437,-500.0,0.00019178,2]
[327931713,1716666634447,-500.0,0.00019178,2]
[327931714,1716666634456,-500.0,0.00019178,2]
[327931715,1716666634467,-2719.21985546,0.00019178,2]
[327931716,1716666634476,-500.0,0.00019178,2]
[327931717,1716666634485,-500.0,0.00019178,2]
[327931718,1716666634494,-2719.21985546,0.00019178,2]
[327931719,1716666634503,-500.0,0.00019178,2]
[327931720,1716666634513,-500.0,0.00019178,2]
[327931721,1716666634526,-500.0,0.00019178,2]
[327931722,1716666634535,-500.0,0.00019178,2]
[327931723,1716666634545,-500.0,0.00019178,2]
[327931724,1716666634555,-2719.21985546,0.00019178,2]
[327931725,1716666634565,-500.0,0.00019178,2]
[327931726,1716666634575,-500.0,0.00019178,2]
[327931727,1716666634585,-500.0,0.00019178,2]
[327931728,1716666634595,-2719.21985546,0.00019178,2]
[327931729,1716666634608,-500.0,0.00019178,2]
[327931730,1716666634618,-500.0,0.00019178,2]
[327931731,1716666634627,-2719.21985546,0.00019178,2]
[327931732,1716666634636,-500.0,0.00019178,2]
[327931733,1716666634645,-500.0,0.00019178,2]
[327931734,1716666634654,-500.0,0.00019178,2]
[327931735,1716666634664,-2719.21985546,0.00019178,2]
[327931736,1716666634673,-500.0,0.00019178,2]
[327931737,1716666634683,-500.0,0.00019178,2]
[327931738,1716666634692,-500.0,0.00019178,2]
[327931739,1716666634702,-2719.21985546,0.00019178,2]
[327931740,1716666634710,-500.0,0.00019178,2]
[327931741,1716666634719,-500.0,0.00019178,2]
[327931742,1716666634729,-500.0,0.00019178,2]
[327931743,1716666634739,-500.0,0.00019178,2]
[327931744,1716666634748,-2719.21985546,0.00019178,2]
[327931745,1716666634758,-500.0,0.00019178,2]
[327931746,1716666634768,-500.0,0.00019178,2]
[327931747,1716666634779,-2719.21985546,0.00019178,2]
[327931748,1716666634788,-500.0,0.00019178,2]
[327931749,1716666634798,-500.0,0.00019178,2]
[327931750,1716666634809,-500.0,0.00019178,2]
[327931751,1716666634818,-2719.21985546,0.00019178,2]
[327931752,1716666634935,-543.07844119,0.00019178,2]
[327931753,1716666634945,-500.0,0.00019178,2]
[327931754,1716666634954,-500.0,0.00019178,2]
[327931755,1716666634963,-500.0,0.00019178,2]
[327931756,1716666634972,-500.0,0.00019178,2]
[327931757,1716666634981,-500.0,0.00019178,2]
[327931758,1716666634991,-500.0,0.00019178,2]
[327931759,1716666635000,-2719.21985546,0.00019178,2]
[327931760,1716666635009,-500.0,0.00019178,2]
[327931761,1716666635018,-500.0,0.00019178,2]
[327931762,1716666635027,-450.51128638,0.00019178,2]
[327931763,1716666635037,-2719.21985546,0.00019178,2]
[327931764,1716666635046,-500.0,0.00019178,2]
[327931765,1716666635056,-2719.21985546,0.00019178,2]
[327931766,1716666635065,-212.05774207,0.00019178,2]
[327931767,1716666635074,-2719.21985546,0.00019178,2]
[327931768,1716666635083,-500.0,0.00019178,2]
[327931769,1716666635094,-2719.21985546,0.00019178,2]
[327931770,1716666635104,-500.0,0.00019178,2]
[327931771,1716666635113,-2719.21985546,0.00019178,2]
[327931772,1716666635122,-500.0,0.00019178,2]
[327931773,1716666635131,-500.0,0.00019178,2]
[327931774,1716666635140,-500.0,0.00019178,2]
[327931775,1716666635149,-2719.21985546,0.00019178,2]
[327931776,1716666635159,-500.0,0.00019178,2]
[327931777,1716666635168,-398.88787791,0.00019178,2]
[327931778,1716666635178,-2719.21985546,0.00019178,2]
[327931779,1716666635187,-2719.21985546,0.00019178,2]
[327931780,1716666635196,-2719.21985546,0.00019178,2]
[327931781,1716666635206,-500.0,0.00019178,2]
[327931782,1716666635215,-2719.21985546,0.00019178,2]
[327931783,1716666635225,-500.0,0.00019178,2]
[327931784,1716666635234,-2719.21985546,0.00019178,2]
[327931785,1716666635244,-2719.21985546,0.00019178,2]
[327931786,1716666635253,-2719.21985546,0.00019178,2]
[327931787,1716666635262,-2719.21985546,0.00019178,2]
[327931788,1716666635272,-2719.21985546,0.00019178,2]
[327931789,1716666635282,-2719.21985546,0.00019178,2]
[327931790,1716666635291,-2719.21985546,0.00019178,2]
[327931791,1716666635301,-2719.21985546,0.00019178,2]
[327931792,1716666635311,-2719.21985546,0.00019178,2]
[327931793,1716666635320,-2719.21985546,0.00019178,2]
[327931794,1716666635331,-500.0,0.00019178,2]
[327931795,1716666635340,-500.0,0.00019178,2]
[327931796,1716666635350,-319.82770013,0.00019178,2]
[327931797,1716666635360,-500.0,0.00019178,2]
[327931798,1716666635368,-500.0,0.00019178,2]
[327931799,1716666635378,-500.0,0.00019178,2]
[327931800,1716666635387,-500.0,0.00019178,2]
[327931801,1716666635396,-500.0,0.00019178,2]
[327931802,1716666635405,-500.0,0.00019178,2]
[327931803,1716666635415,-500.0,0.00019178,2]
[327931804,1716666635425,-500.0,0.00019178,2]
[327931805,1716666635434,-594.16502484,0.00019178,2]
[327931806,1716666635444,-500.0,0.00019178,2]
[327931807,1716666635454,-500.0,0.00019178,2]
[327931808,1716666635463,-500.0,0.00019178,2]
[327931809,1716666635473,-2696.55969001,0.00019178,2]
[327931810,1716666635482,-2696.55969001,0.00019178,2]
[327931811,1716666635491,-2696.55969001,0.00019178,2]
[327931812,1716666635500,-2696.55969001,0.00019178,2]
[327931813,1716666635509,-2696.55969001,0.00019178,2]
[327931814,1716666635520,-2696.55969001,0.00019178,2]
[327931815,1716666635533,-2696.55969001,0.00019178,2]
[327931816,1716666635542,-2696.55969001,0.00019178,2]
[327931817,1716666635551,-2696.55969001,0.00019178,2]
[327931818,1716666635562,-2696.55969001,0.00019178,2]
[327931819,1716666635571,-2696.55969001,0.00019178,2]
[327931820,1716666635580,-2696.55969001,0.00019178,2]
[327931821,1716666635589,-2696.55969001,0.00019178,2]
[327931822,1716666635600,-2696.55969001,0.00019178,2]
[327931823,1716666635609,-2696.55969001,0.00019178,2]
[327931824,1716666635619,-2696.55969001,0.00019178,2]
[327931825,1716666635629,-2696.55969001,0.00019178,2]
[327931826,1716666635639,-500.0,0.00019178,2]
[327931827,1716666635649,-2696.55969001,0.00019178,2]
[327931828,1716666635658,-2696.55969001,0.00019178,2]
[327931829,1716666635667,-550.0,0.00019178,2]
[327931830,1716666635677,-500.0,0.00019178,2]
[327931831,1716666635686,-500.0,0.00019178,2]
[327931832,1716666635696,-500.0,0.00019178,2]
[327931833,1716666635705,-2696.55969001,0.00019178,2]
[327931834,1716666635714,-2696.55969001,0.00019178,2]
[327931835,1716666635723,-500.0,0.00019178,2]
[327931836,1716666635732,-500.0,0.00019178,2]
[327931837,1716666635741,-550.0,0.00019178,2]
[327931838,1716666635750,-2696.55969001,0.00019178,2]
[327931839,1716666635759,-500.0,0.00019178,2]
[327931840,1716666635768,-2696.55969001,0.00019178,2]
[327931841,1716666635777,-500.0,0.00019178,2]
[327931842,1716666635787,-500.0,0.00019178,2]
[327931843,1716666635796,-2696.55968999,0.00019178,2]
[327931844,1716666635807,-500.0,0.00019178,2]
[327931845,1716666635817,-389.0454833,0.00019178,2]
[327931846,1716666635828,-500.0,0.00019178,2]
[327931847,1716666635838,-500.0,0.00019178,2]
[327931848,1716666635848,-550.0,0.00019178,2]
[327931849,1716666635858,-500.0,0.00019178,2]
[327931850,1716666635867,-502.84940203,0.00019178,2]
[327931851,1716666635877,-405.12390828,0.00019178,2]
[327931852,1716666635886,-470.0,0.00019178,2]
[327931853,1716666635896,-500.0,0.00019178,2]
[327931854,1716666635906,-509.74337345,0.00019178,2]
[327931855,1716666635916,-500.0,0.00019178,2]
[327931856,1716666635925,-500.0,0.00019178,2]
[327931857,1716666635935,-500.0,0.00019178,2]
[327931858,1716666635945,-500.0,0.00019178,2]
[327931859,1716666635955,-500.0,0.00019178,2]
[327931860,1716666635964,-500.0,0.00019178,2]
[327931861,1716666635974,-500.0,0.00019178,2]
[327931862,1716666635984,-428.10717247,0.00019178,2]
[327931863,1716666635994,-370.97570658,0.00019178,2]
[327931864,1716666636004,-500.0,0.00019178,2]
[327931865,1716666636014,-500.0,0.00019178,2]
[327931866,1716666636024,-500.0,0.00019178,2]
[327931867,1716666636035,-500.0,0.00019178,2]
[327931868,1716666636046,-500.0,0.00019178,2]
[327931869,1716666636059,-500.0,0.00019178,2]
[327931870,1716666636069,-500.0,0.00019178,2]
[327931871,1716666636078,-500.0,0.00019178,2]
[327931872,1716666636088,-308.2823359,0.00019178,2]
[327931873,1716666636098,-500.0,0.00019178,2]
[327931874,1716666636108,-227.12798362,0.00019178,2]
[327931875,1716666636118,-500.0,0.00019178,2]
[327931876,1716666636127,-533.33465797,0.00019178,2]
[327931877,1716666636137,-500.0,0.00019178,2]
[327931878,1716666636146,-500.0,0.00019178,2]
[327931879,1716666636155,-500.0,0.00019178,2]
[327931880,1716666636164,-386.63156739,0.00019178,2]
[327931881,1716666636173,-500.0,0.00019178,2]
[327931882,1716666636183,-600.0,0.00019178,2]
[327931883,1716666636192,-500.0,0.00019178,2]
[327931884,1716666636201,-550.0,0.00019178,2]
[327931885,1716666636210,-500.0,0.00019178,2]
[327931886,1716666636220,-326.53142324,0.00019178,2]
[327931887,1716666636230,-615.67962654,0.00019178,2]
[327931888,1716666636240,-544.72120306,0.00019178,2]
[327931889,1716666636250,-500.0,0.00019178,2]
[327931890,1716666636259,-385.12820661,0.00019178,2]
[327931891,1716666636269,-384.28448764,0.00019178,2]
[327931892,1716666636279,-568.09520455,0.00019178,2]
[327931893,1716666636288,-500.0,0.00019178,2]
[327931894,1716666636298,-500.0,0.00019178,2]
[327931895,1716666636307,-440.39183425,0.00019178,2]
[327931896,1716666636316,-363.31116617,0.00019178,2]
[327931897,1716666636326,-188.73935754,0.00019178,2]
[327931898,1716666636336,-359.0365645,0.00019178,2]
[327931899,1716666636348,-248.46148782,0.00019178,2]
[327931900,1716666636358,-641.66666667,0.00019178,2]
[327931901,1716666636367,-641.66666667,0.00019178,2]
[327931902,1716666636378,-641.66666667,0.00019178,2]
[327931903,1716666636387,-641.66666667,0.00019178,2]
[327931904,1716666636396,-641.66666667,0.00019178,2]
[327931905,1716666636406,-641.66666667,0.00019178,2]
[327931906,1716666636415,-347.81339054,0.00019178,2]
[327931907,1716666636425,-305.93035988,0.00019178,2]
[327931908,1716666636435,-4115.97470878,0.00019178,2]
[327931909,1716666636444,-625.4937042,0.00019178,2]
[327931910,1716666636454,-500.0,0.00019178,2]
[327931911,1716666636463,-500.0,0.00019178,2]
[327931912,1716666636473,-500.0,0.00019178,2]
[327931913,1716666636482,-500.0,0.00019178,2]
[327931914,1716666636492,-500.0,0.00019178,2]
[327931915,1716666636501,-440.1171296,0.00019178,2]
[327931916,1716666636511,-16070.9211684,0.00019178,2]
[327931917,1716666636520,-16070.9211684,0.00019178,2]
[327931918,1716666636535,-16070.9211684,0.00019178,2]
[327931919,1716666636544,-500.0,0.00019178,2]
[327931920,1716666636554,-500.0,0.00019178,2]
[327931921,1716666636564,-500.0,0.00019178,2]
[327931922,1716666636575,-925.47472994,0.00019178,2]
[327931923,1716666636584,-925.47472994,0.00019178,2]
[327931924,1716666636594,-925.47472994,0.00019178,2]
[327931925,1716666636605,-295.72633353,0.00019178,2]
[327931926,1716666636615,-253.66205303,0.00019178,2]
[327931927,1716666636624,-471.68734348,0.00019178,2]
[327931928,1716666636633,-157.71717594,0.00019178,2]
[327931929,1716666636643,-500.0,0.00019178,2]
[327931930,1716666636653,-500.0,0.00019178,2]
[327931931,1716666636663,-500.0,0.00019178,2]
[327931932,1716666636672,-174.31512983,0.00019178,2]
[327931933,1716666636682,-283.01887991,0.00019178,2]
[327931934,1716666636693,-472.39869803,0.00019178,2]
[327931935,1716666636703,-500.0,0.00019178,2]
[327931936,1716666636713,-650.56530956,0.00019178,2]
[327931937,1716666636722,-500.0,0.00019178,2]
[327931938,1716666636732,-500.0,0.00019178,2]
[327931939,1716666636742,-500.0,0.00019178,2]
[327931940,1716666636752,-500.0,0.00019178,2]
[327931941,1716666636762,-500.0,0.00019178,2]
[327931942,1716666636771,-500.0,0.00019178,2]
[327931943,1716666636781,-225.94593775,0.00019178,2]
[327931944,1716666636790,-151.0,0.00019178,2]
[327931945,1716666636800,-151.0,0.00019178,2]
[327931946,1716666636811,-151.0,0.00019178,2]
[327931947,1716666636820,-151.0,0.00019178,2]
[327931948,1716666636830,-151.0,0.00019178,2]
[327931949,1716666636840,-151.0,0.00019178,2]
[327931950,1716666636850,-151.0,0.00019178,2]
[327931951,1716666636859,-151.0,0.00019178,2]
[327931952,1716666636869,-151.0,0.00019178,2]
[327931953,1716666636879,-247.795296,0.00019178,2]
[327931954,1716666636888,-278.696478,0.00019178,2]
[327931955,1716666636898,-151.0,0.00019178,2]
[327931956,1716666636908,-289.19402204,0.00019178,2]
[327931957,1716666636917,-151.0,0.00019178,2]
[327931958,1716666636926,-190.192591,0.00019178,2]
[327931959,1716666636936,-1000.0,0.00019178,2]
[327931960,1716666636945,-1000.0,0.00019178,3]
[327931961,1716666636955,-1000.0,0.00019178,4]
[327931962,1716666636964,-1000.0,0.00019178,5]
[327931963,1716666636973,-1000.0,0.00019178,6]
[327931964,1716666636983,-1000.0,0.00019178,7]
[327931965,1716666636992,-1000.0,0.00019178,8]
[327931966,1716666637002,-1000.0,0.00019178,9]
[327931967,1716666637011,-1000.0,0.00019178,10]
[327931968,1716666637020,-1001.97078196,0.00019178,11]
[327931969,1716666637030,-151.0,0.00019178,2]
[327931970,1716666637039,-151.0,0.00019178,2]
[327931971,1716666637049,-151.0,0.00019178,2]
[327931972,1716666637061,-151.0,0.00019178,2]
[327931973,1716666637070,-151.0,0.00019178,2]
[327931974,1716666637079,-151.0,0.00019178,2]
[327931975,1716666637089,-151.0,0.00019178,2]
[327931976,1716666637098,-151.0,0.00019178,2]
[327931977,1716666637108,-151.0,0.00019178,2]
[327931978,1716666637118,-188.78334,0.00019178,2]
[327931979,1716666637127,-235.631067,0.00019178,2]
[327931980,1716666637136,-235.631067,0.00019178,2]
[327931981,1716666637145,-235.631067,0.00019178,2]
[327931982,1716666637155,-235.631067,0.00019178,2]
[327931983,1716666637165,-235.631067,0.00019178,2]
[327931984,1716666637175,-235.631067,0.00019178,2]
[327931985,1716666637185,-235.631067,0.00019178,2]
[327931986,1716666637194,-235.631067,0.00019178,2]
[327931987,1716666637204,-235.631067,0.00019178,2]
[327931988,1716666637214,-235.631067,0.00019178,2]
[327931989,1716666637224,-235.631067,0.00019178,2]
[327931990,1716666637234,-235.631067,0.00019178,2]
[327931991,1716666637244,-235.631067,0.00019178,2]
[327931992,1716666637254,-235.631061,0.00019178,2]
[327931993,1716666637263,-168.17094,0.00019178,2]
[327931994,1716666637274,-161.2764814,0.00019178,2]
[327931995,1716666637284,-199.876801,0.00019178,2]
[327931996,1716666637294,-151.0,0.00019178,2]
[327931997,1716666637305,-151.0,0.00019178,2]
[327931998,1716666637315,-151.0,0.00019178,2]
[327931999,1716666637325,-151.0,0.00019178,2]
[327932000,1716666637334,-151.0,0.00019178,2]
[327932001,1716666637343,-151.0,0.00019178,2]
[327932002,1716666637353,-151.0,0.00019178,2]
[327932003,1716666637362,-151.0,0.00019178,2]
[327932004,1716666637372,-151.0,0.00019178,2]
[327932005,1716666637382,-151.0,0.00019178,2]
[327932006,1716666637391,-151.0,0.00019178,2]
[327932007,1716666637400,-151.0,0.00019178,2]
[327932008,1716666637410,-151.0,0.00019178,2]
[327932009,1716666637420,-151.0,0.00019178,2]
[327932010,1716666637430,-187.667918,0.00019178,2]
[327932011,1716666637439,-151.0,0.00019178,2]
[327932012,1716666637449,-151.0,0.00019178,2]
[327932013,1716666637458,-151.0,0.00019178,2]
[327932014,1716666637468,-151.0,0.00019178,2]
[327932015,1716666637478,-151.0,0.00019178,2]
[327932016,1716666637489,-151.0,0.00019178,2]
[327932017,1716666637499,-151.0,0.00019178,2]
[327932018,1716666637509,-151.0,0.00019178,2]
[327932019,1716666637520,-151.0,0.00019178,2]
[327932020,1716666637534,-301.238299,0.00019178,2]
[327932021,1716666637543,-163.786544,0.00019178,2]
[327932022,1716666637555,-931.89299126,0.00019397,2]
[327932023,1716666637564,-1000.0,0.000195,2]
[327932024,1716666637574,-1608.868688,0.000195,2]
[327932025,1716666637685,-155.04496304,0.0002,2]
[327932026,1716666637696,-400.0,0.0002,2]
[327932027,1716666637706,-155.22893559,0.0002,2]
[327932028,1716666637716,-155.28956676,0.0002,2]
[327932029,1716666637726,-155.87118088,0.0002,2]
[327932030,1716666637735,-172.84380887,0.0002,2]
[327932031,1716666637745,-286.55957499,0.0002,2]
[327932032,1716666637755,-157.61533369,0.0002,2]
[327932033,1716666637766,-11288.04375488,0.0002,2]
[327932034,1716666637776,-286.75288151,0.0002,2]
[327932035,1716666637786,-11569.0,0.0002,2]
[327932036,1716666637796,-1450.9824822,0.0002,10]
[327932037,1716666637808,-10744.37520732,0.0002,2]
[327932038,1716666637817,-50189.81725092,0.0002,2]
[327932039,1716666637826,-1534.55198948,0.0002,2]
[327932040,1716666637835,-538.11005712,0.0002,2]
[327932041,1716666637844,-485.0,0.0002,2]
[327932043,1716666637864,-156.04063674,0.0002,2]
[327932044,1716666637874,-254.55284091,0.0002,2]
[327932046,1716666637884,-1000.0,0.0002,2]
[327932048,1716666637894,-620.00006233,0.00020014,2]
[327932050,1716666637904,-392.62090372,0.000203,2]
[327932052,1716666637914,-347.59966996,0.00020753,2]
[327932054,1716666637923,-4696.66519312,0.00021,2]
[327932056,1716666637933,-280.0,0.00021,2]
[327932057,1716666637943,-237.4888443,0.00021,2]
[327932058,1716666637953,-8701.26388582,0.00021,2]
[327932074,1716666638404,-154.86062544,7.614e-05,2]
[327932075,1716666638414,-154.86062544,7.614e-05,2]
[327932076,1716666638424,-151.0,0.00019076,2]
[327932077,1716666638434,-151.0,0.00019076,2]
[327932078,1716666638443,-151.0,0.00019178,2]
[327932079,1716666638453,-152.1247,0.00019178,2]
[327932080,1716666638462,-165.39404877,0.00019178,2]
[327932081,1716666638475,-3756.89999999,0.00019178,2]
[327932082,1716666638487,-303.94451913,0.00019178,2]
[327932083,1716666638497,-52.99427782,0.00021,2]
[327932084,1716666638514,-17637.06498114,0.00021,2]
[327932085,1716666638527,-10047.46782197,0.00021,2]
[327932086,1716666638536,-197.98408008,0.00021,2]
[327932087,1716666638546,-620.00000312,0.00021015,2]
[327932088,1716666638557,-500.0,0.0002113,2]
[327932089,1716666638567,-500.0,0.0002113,2]
[327932090,1716666638576,-168.16,0.0002113,2]
[327932091,1716666638586,-10000.0,0.00021397,2]
[327932092,1716666638595,-153.0,0.00021589,2]
[327932093,1716666638607,-153.0,0.00021589,2]
[327932094,1716666638616,-153.0,0.00021589,2]
[327932095,1716666638626,-153.0,0.00021589,2]
[327932096,1716666638635,-151.0,0.00021784,2]
[327932097,1716666638645,-10000.0,0.00021918,2]
[327932098,1716666638654,-151.0,0.00021918,2]
[327932099,1716666638664,-151.0,0.00021918,2]
[327932100,1716666638673,-166.666666,0.00021918,2]
[327932101,1716666638683,-154.87609912,0.00022,2]
[327932102,1716666638692,-159.87339934,0.00022,2]
[327932103,1716666638701,-171.26456238,0.00022,2]
[327932104,1716666638710,-409.2536504,0.00022038,2]
[327932105,1716666638720,-620.00000016,0.00022066,2]
[327932106,1716666638729,-1068.27190262,0.000223,2]
[327932107,1716666638739,-166.666666,0.00022431,2]
[327932108,1716666638748,-291.16586079,0.000225,2]
[327932109,1716666638758,-931.89299126,0.00022853,2]
[327932110,1716666638769,-166.666666,0.00022944,2]
[327932111,1716666638778,-466.77736461,0.00023,2]
[327932112,1716666638787,-528.83708508,0.00023,2]
[327932113,1716666638797,-154.87609912,0.00023,2]
[327932114,1716666638807,-1000.0,0.00023,5]
[327932115,1716666638817,-5000.0,0.00023,7]
[327932116,1716666638826,-498.0,0.00023,2]
[327932117,1716666638836,-498.0,0.00023288,2]
[327932118,1716666638846,-166.666666,0.00023456,2]
[327932119,1716666638855,-153.0,0.00023507,2]
[327932120,1716666638865,-153.0,0.00023507,2]
[327932121,1716666638875,-153.0,0.00023507,2]
[327932122,1716666638884,-306.0,0.00023507,2]
[327932123,1716666638894,-153.0,0.00023507,2]
[327932124,1716666638903,-156.6388778,0.00023507,2]
[327932125,1716666638912,-5000.0,0.000239,11]
[327932126,1716666638922,-3045.11160884,0.000239,2]
[327932127,1716666638931,-166.666666,0.00023969,2]
[327932128,1716666638940,-187.36839021,0.00024,2]
[327932129,1716666638950,-498.0,0.00024164,2]
[327932130,1716666638960,-303.805401,0.00024384,2]
[327932131,1716666638970,-446.194599,0.00024384,2]
[327932132,1716666638979,-166.666666,0.00024482,2]
[327932133,1716666638989,-500.0,0.00024657,2]
[327932134,1716666638998,-500.0,0.00024657,2]
[327932135,1716666639007,-500.0,0.00024657,2]
[327932136,1716666639016,-500.0,0.00024657,2]
[327932137,1716666639026,-513.2776701,0.00024657,2]
[327932138,1716666639035,-500.0,0.00024657,2]
[327932139,1716666639044,-500.0,0.00024657,2]
[327932140,1716666639054,-500.0,0.00024657,2]
[327932141,1716666639067,-389.58849283,0.00024657,2]
[327932142,1716666639075,-500.0,0.00024657,2]
[327932143,1716666639085,-515.72519563,0.00024657,2]
[327932144,1716666639094,-500.0,0.00024657,2]
[327932145,1716666639103,-564.27665472,0.00024657,2]
[327932146,1716666639112,-500.0,0.00024657,2]
[327932147,1716666639121,-500.0,0.00024657,2]
[327932148,1716666639131,-500.0,0.00024657,2]
[327932149,1716666639140,-500.0,0.00024657,2]
[327932150,1716666639150,-500.0,0.00024657,2]
[327932151,1716666639159,-500.0,0.00024657,2]
[327932152,1716666639168,-412.65263769,0.00024657,2]
[327932153,1716666639178,-500.0,0.00024657,2]
[327932154,1716666639188,-500.0,0.00024657,2]
[327932155,1716666639197,-500.0,0.00024657,2]
[327932156,1716666639207,-500.0,0.00024657,2]
[327932157,1716666639216,-500.0,0.00024657,2]
[327932158,1716666639225,-500.0,0.00024657,2]
[327932159,1716666639235,-500.0,0.00024657,2]
[327932160,1716666639244,-500.0,0.00024657,2]
[327932161,1716666639254,-500.0,0.00024657,2]
[327932162,1716666639263,-500.53083041,0.00024657,2]
[327932163,1716666639272,-500.0,0.00024657,2]
[327932164,1716666639281,-500.0,0.00024657,2]
[327932165,1716666639291,-500.0,0.00024657,2]
[327932166,1716666639300,-230.43923077,0.00024657,2]
[327932167,1716666639311,-513.0873256,0.00024657,2]
[327932168,1716666639320,-500.0,0.00024657,2]
[327932169,1716666639329,-515.12970976,0.00024657,2]
[327932170,1716666639338,-500.0,0.00024657,2]
[327932171,1716666639347,-500.0,0.00024657,2]
[327932172,1716666639356,-500.0,0.00024657,2]
[327932173,1716666639365,-500.0,0.00024657,2]
[327932174,1716666639374,-500.0,0.00024657,2]
[327932175,1716666639383,-500.0,0.00024657,2]
[327932176,1716666639395,-500.0,0.00024657,2]
[327932177,1716666639404,-500.0,0.00024657,2]
[327932178,1716666639414,-500.0,0.00024657,2]
[327932179,1716666639423,-500.0,0.00024657,2]
[327932180,1716666639433,-500.0,0.00024657,2]
[327932181,1716666639442,-500.0,0.00024657,2]
[327932182,1716666639452,-500.0,0.00024657,2]
[327932183,1716666639462,-500.0,0.00024657,2]
[327932184,1716666639472,-500.0,0.00024657,2]
[327932185,1716666639482,-500.0,0.00024657,2]
[327932186,1716666639492,-500.0,0.00024657,2]
[327932187,1716666639501,-510.56162213,0.00024657,2]
[327932188,1716666639511,-500.0,0.00024657,2]
[327932189,1716666639521,-500.0,0.00024657,2]
[327932190,1716666639536,-500.0,0.00024657,2]
[327932191,1716666639546,-500.0,0.00024657,2]
[327932192,1716666639555,-500.0,0.00024657,2]
[327932193,1716666639566,-154.82968734,0.00024657,2]
[327932194,1716666639576,-500.0,0.00024657,2]